bitfinex/quotes_SOLUSD_20260223
["timestamp","ask_amount","ask_price","bid_price","bid_amount"]
[1771860829445,3.69383402,79.903,79.841,0.97881383]
[1771860829446,14.16719074,79.87,79.841,0.97881383]
[1771860829751,14.16719074,79.88,79.841,0.97881383]
[1771860830140,3.69383402,79.893,79.833,0.97881383]
[1771860830141,14.16719074,79.86,79.833,0.97881383]
[1771860831828,14.16719074,79.85,79.823,0.97881383]
[1771860832029,14.16719074,79.85,79.812,0.97881383]
[1771860832230,12.52363836,79.849,79.813,12.5292872]
[1771860832447,14.16719074,79.85,79.814,0.97881383]
[1771860832640,26.69081227,79.85,79.814,0.97881383]
[1771860833042,14.16719074,79.85,79.814,0.97881383]
[1771860833451,3.69383402,79.863,79.804,13.5095128]
[1771860833452,14.16719074,79.84,79.804,13.5095128]
[1771860833649,14.16719074,79.83,79.804,12.53069897]
[1771860833854,0.93035716,79.829,79.793,12.53242765]
[1771860834152,0.93035716,79.829,79.794,0.97881383]
[1771860834339,0.93035716,79.842,79.796,0.97881383]
[1771860834535,14.16719074,79.82,79.79,0.1]
[1771860835730,14.16719074,79.82,79.791,12.53274178]
[1771860836336,50.08867524,79.859,79.79,0.1]
[1771860836337,0.93035716,79.853,79.81,15.14600457]
[1771860836549,3.69383402,79.847,79.811,0.97881383]
[1771860837135,4.62419118,79.847,79.811,0.97881383]
[1771860837335,0.93035716,79.829,79.799,12.53141256]
[1771860837936,14.16719074,79.82,79.79,0.1]
[1771860838158,14.16719074,79.81,79.79,0.1]
[1771860838376,0.93035716,79.819,79.79,0.1]
[1771860839049,14.16719074,79.82,79.791,0.97881383]
[1771860839253,14.16719074,79.83,79.791,0.97881383]
[1771860839455,26.69382799,79.83,79.791,0.97881383]
[1771860839652,14.16719074,79.82,79.791,0.97881383]
[1771860840053,0.93035716,79.848,79.801,0.97881383]
[1771860840352,14.16719074,79.83,79.801,0.97881383]
[1771860840558,14.16719074,79.83,79.801,13.5099757]
[1771860840859,14.16719074,79.83,79.802,0.97881383]
[1771860841538,0.93035716,79.838,79.802,0.97881383]
[1771860841760,14.16719074,79.83,79.802,0.97881383]
[1771860842265,14.16719074,79.83,79.801,13.5099757]
[1771860842573,14.16719074,79.83,79.79,14.26719074]
[1771860842574,14.16719074,79.81,79.79,0.1]
[1771860842747,0.93035716,79.819,79.79,0.1]
[1771860843071,0.93035716,79.819,79.79,1.07881383]
[1771860843246,14.16719074,79.81,79.79,0.1]
[1771860843974,12.52850234,79.818,79.79,0.1]
[1771860844267,14.16719074,79.82,79.791,0.97881383]
[1771860844670,14.16719074,79.82,79.792,12.53258472]
[1771860844967,12.5269329,79.828,79.793,0.97881383]
[1771860845174,14.16719074,79.83,79.793,0.97881383]
[1771860847067,14.16719074,79.82,79.794,12.53227059]
[1771860847246,0.93035716,79.829,79.795,0.97881383]
[1771860849256,12.5269329,79.828,79.796,12.53195648]
[1771860849766,12.5269329,79.828,79.797,0.97881383]
[1771860850350,0.93035716,79.829,79.801,0.97881383]
[1771860850551,0.93035716,79.846,79.811,0.97881383]
[1771860850751,0.93035716,79.846,79.796,12.53195648]
[1771860850752,0.93035716,79.839,79.802,0.97881383]
[1771860850958,14.16719074,79.83,79.802,0.97881383]
[1771860851648,14.16719074,79.82,79.794,0.97881383]
[1771860852069,13.45713314,79.829,79.794,0.97881383]
[1771860852369,0.93035716,79.809,79.79,12.632805]
[1771860852566,0.93035716,79.818,79.79,12.632805]
[1771860852875,14.16719074,79.81,79.79,12.632805]
[1771860853054,0.93035716,79.809,79.79,0.1]
[1771860854053,14.16719074,79.82,79.79,1.07881383]
[1771860854969,14.16719074,79.83,79.791,0.97881383]
[1771860856066,0.93035716,79.829,79.793,0.97881383]
[1771860856379,26.69391716,79.83,79.793,0.97881383]
[1771860856673,27.62427432,79.83,79.793,0.97881383]
[1771860856863,0.93035716,79.829,79.793,0.97881383]
[1771860857573,14.16719074,79.81,79.79,0.1]
[1771860857879,14.16719074,79.82,79.792,0.93087177]
[1771860859073,14.16719074,79.82,79.791,12.53274178]
[1771860859074,14.16719074,79.8,79.79,0.1]
[1771860859278,14.16719074,79.8,79.762,0.93087177]
[1771860859279,0.9131949,79.799,79.762,0.93087177]
[1771860859454,12.53164239,79.798,79.763,12.53714128]
[1771860859658,13.42762333,79.798,79.764,0.89042177]
[1771860859968,14.16719074,79.8,79.764,0.89042177]
[1771860861071,14.16719074,79.79,79.764,0.89042177]
[1771860861258,0.89598094,79.799,79.764,0.89042177]
[1771860861454,0.89598094,79.799,79.733,50.16742401]
[1771860861455,14.16719074,79.77,79.73,14.16719074]
[1771860861658,0.89598094,79.769,79.731,43.89760569]
[1771860862069,12.53503636,79.777,79.74,14.16719074]
[1771860862273,12.53494114,79.777,79.74,14.16719074]
[1771860862576,13.43007666,79.783,79.75,14.16719074]
[1771860863078,0.89598094,79.779,79.74,14.16719074]
[1771860863468,0.89598094,79.779,79.741,0.89042177]
[1771860864958,0.89598094,79.769,79.742,12.54044292]
[1771860865158,14.16719074,79.76,79.733,12.54177321]
[1771860865359,0.89598094,79.749,79.714,0.89042177]
[1771860865581,0.89598094,79.739,79.711,12.54531996]
[1771860865756,0.89598094,79.739,79.71,0.1]
[1771860865959,0.89598094,79.739,79.711,12.54531996]
[1771860867475,0.89598094,79.739,79.71,0.1]
[1771860867476,0.89598094,79.769,79.731,0.89042177]
[1771860867661,0.89598094,79.769,79.74,14.16719074]
[1771860868172,0.89598094,79.769,79.75,14.16719074]
[1771860868368,3.69383402,79.786,79.75,14.16719074]
[1771860868572,0.89598094,79.785,79.75,14.16719074]
[1771860868875,0.89598094,79.785,79.75,15.05761251]
[1771860869081,13.42903687,79.789,79.76,15.05761251]
[1771860869775,13.42903687,79.789,79.761,12.53745564]
[1771860869973,14.16719074,79.78,79.751,0.89042177]
[1771860870278,0.89598094,79.779,79.74,14.16719074]
[1771860871361,0.89598094,79.779,79.74,14.25225271]
[1771860871561,0.89598094,79.777,79.74,14.25225271]
[1771860871764,0.89598094,79.777,79.741,12.54060019]
[1771860872773,0.89598094,79.777,79.75,14.25225271]
[1771860873766,0.89598094,79.775,79.74,14.25225271]
[1771860874177,0.89598094,79.769,79.732,12.54197519]
[1771860874588,0.89598094,79.769,79.74,14.25225271]
[1771860875076,12.53509827,79.776,79.741,0.89042177]
[1771860875482,13.43107921,79.776,79.741,0.89042177]
[1771860875680,0.89598094,79.775,79.741,0.89042177]
[1771860875901,0.89598094,79.773,79.74,14.25225271]
[1771860876064,0.89598094,79.769,79.732,0.89042177]
[1771860876669,0.89598094,79.769,79.733,0.89042177]
[1771860877392,0.89598094,79.769,79.74,14.25225271]
[1771860878183,0.89598094,79.769,79.742,0.89042177]
[1771860878184,12.53635543,79.768,79.742,0.89042177]
[1771860878484,12.53635543,79.768,79.75,14.25225271]
[1771860878789,31.33113679,79.793,79.761,0.89042177]
[1771860878965,12.53305593,79.789,79.761,0.89042177]
[1771860879683,12.53305593,79.789,79.76,14.25225271]
[1771860880189,31.3314618,79.792,79.761,0.89042177]
[1771860880591,12.53148535,79.799,79.763,0.89042177]
[1771860880888,0.89598094,79.798,79.763,0.89042177]
[1771860881770,0.89598094,79.798,79.762,12.53729846]
[1771860881771,0.89598094,79.789,79.751,0.89042177]
[1771860881981,0.89598094,79.789,79.753,0.89042177]
[1771860883070,0.89598094,79.787,79.753,0.89042177]
[1771860884580,0.89598094,79.785,79.753,0.89042177]
[1771860884890,0.89598094,79.779,79.741,12.54060019]
[1771860885093,0.89598094,79.779,79.741,13.43102196]
[1771860885689,0.89598094,79.779,79.742,0.89042177]
[1771860886587,14.25225271,79.77,79.742,0.89042177]
[1771860887289,0.89598094,79.759,79.72,14.25225271]
[1771860887489,0.89598094,79.749,79.721,0.89042177]
[1771860888007,0.89598094,79.749,79.712,0.85578498]
[1771860888203,14.25225271,79.74,79.712,0.85578498]
[1771860888492,3.69383402,79.775,79.721,0.85578498]
[1771860888493,0.85973215,79.759,79.721,0.85578498]
[1771860888700,13.39765937,79.758,79.723,0.85578498]
[1771860889079,12.53792722,79.758,79.731,0.85578498]
[1771860890882,12.53792722,79.758,79.722,43.90256139]
[1771860890883,12.53792722,79.758,79.733,0.85578498]
[1771860892478,0.85973215,79.768,79.733,0.85578498]
[1771860892976,12.53777003,79.759,79.733,0.85578498]
[1771860893186,12.53777003,79.759,79.73,14.25225271]
[1771860893392,14.25225271,79.75,79.722,0.85578498]
[1771860893591,0.85973215,79.739,79.71,0.1]
[1771860894385,0.85973215,79.739,79.711,12.54531996]
[1771860894580,0.85973215,79.739,79.712,0.85578498]
[1771860895303,12.53934218,79.749,79.721,0.85578498]
[1771860896206,0.85973215,79.748,79.714,0.85578498]
[1771860897497,12.53965666,79.747,79.714,0.85578498]
[1771860898098,12.53965666,79.747,79.716,0.85578498]
[1771860899487,12.53965666,79.747,79.718,0.85578498]
[1771860900985,14.25225271,79.75,79.718,0.85578498]
[1771860901189,12.53761283,79.76,79.731,0.85578498]
[1771860902004,12.53761283,79.76,79.71,0.1]
[1771860902005,14.25225271,79.74,79.71,0.1]
[1771860902600,14.25225271,79.74,79.71,1.01454495]
[1771860902997,14.25225271,79.75,79.711,13.45986491]
[1771860903322,12.5346269,79.779,79.74,14.25225271]
[1771860903492,50.10919691,79.826,79.751,0.91454495]
[1771860903493,14.25225271,79.8,79.751,0.91454495]
[1771860903694,3.69383402,79.797,79.761,0.91454495]
[1771860903901,14.25225271,79.79,79.753,0.91454495]
[1771860904203,14.25225271,79.79,79.714,3.69383402]
[1771860904204,14.25225271,79.78,79.742,0.91454495]
[1771860904614,43.8618477,79.796,79.761,0.91454495]
[1771860904997,14.25225271,79.79,79.761,0.91454495]
[1771860905493,12.53195648,79.796,79.761,0.91454495]
[1771860905700,3.69383402,79.813,79.77,14.25225271]
[1771860906011,14.25225271,79.8,79.77,15.16679766]
[1771860906195,12.53148535,79.799,79.77,0.91454495]
[1771860906398,12.52646215,79.831,79.791,0.91454495]
[1771860906597,31.31054423,79.846,79.811,0.91454495]
[1771860906816,14.25225271,79.84,79.811,0.91454495]
[1771860907309,31.31054423,79.846,79.772,0.91454495]
[1771860907310,14.25225271,79.82,79.772,0.91454495]
[1771860907515,3.69383402,79.833,79.78,14.25225271]
[1771860907708,14.25225271,79.81,79.78,14.25225271]
[1771860908424,14.25225271,79.8,79.774,0.91454495]
[1771860909711,14.25225271,79.83,79.781,0.91454495]
[1771860910317,14.25225271,79.82,79.781,0.91454495]
[1771860910897,14.25225271,79.82,79.78,14.25225271]
[1771860910898,12.52834538,79.819,79.783,0.91454495]
[1771860913013,14.25225271,79.82,79.785,0.91454495]
[1771860914515,12.52834538,79.819,79.786,12.53352718]
[1771860914717,12.52834538,79.819,79.787,0.91454495]
[1771860916103,12.52691453,79.829,79.787,0.91454495]
[1771860916418,50.08402048,79.866,79.786,43.86734514]
[1771860916419,50.05638536,79.91,79.822,0.91454495]
[1771860916603,50.05638536,79.91,79.851,0.91454495]
[1771860916604,12.51808839,79.885,79.851,0.91454495]
[1771860916808,12.51736784,79.889,79.852,0.91454495]
[1771860917507,14.25225271,79.88,79.852,0.91454495]
[1771860918722,14.25225271,79.87,79.842,0.91454495]
[1771860920299,14.25225271,79.86,79.838,12.52531732]
[1771860920703,3.69383402,79.893,79.834,12.52599143]
[1771860920704,14.25225271,79.87,79.834,12.52599143]
[1771860920945,14.25225271,79.87,79.835,0.91454495]
[1771860921518,106.3936314,79.892,79.835,0.91454495]
[1771860921519,14.25225271,79.86,79.835,0.91454495]
[1771860922818,12.52207014,79.859,79.835,0.91454495]
[1771860923003,14.25225271,79.85,79.826,0.91454495]
[1771860923205,12.52207014,79.859,79.826,0.91454495]
[1771860923709,14.25225271,79.85,79.826,0.91454495]
[1771860923905,14.25225271,79.87,79.826,0.91454495]
[1771860924218,3.69383402,79.883,79.826,0.91454495]
[1771860924219,14.25225271,79.86,79.826,0.91454495]
[1771860924821,12.52050232,79.869,79.828,0.91454495]
[1771860925620,14.25225271,79.86,79.828,0.91454495]
[1771860926117,12.52050232,79.869,79.828,0.91454495]
[1771860926426,14.25225271,79.86,79.828,0.91454495]
[1771860927316,14.25225271,79.85,79.828,0.91454495]
[1771860927509,14.25225271,79.85,79.813,13.44383215]
[1771860927710,14.25225271,79.85,79.814,0.91454495]
[1771860930113,12.52363836,79.849,79.816,0.91454495]
[1771860930429,12.52363836,79.849,79.815,12.52897325]
[1771860930430,14.25225271,79.83,79.808,0.91454495]
[1771860930626,14.25225271,79.84,79.808,0.91454495]
[1771860932712,12.52520697,79.839,79.81,0.91454495]
[1771860933209,12.52520697,79.839,79.809,12.52991517]
[1771860933210,14.25225271,79.82,79.783,0.91454495]
[1771860933416,14.23845421,79.81,79.783,0.91454495]
[1771860933624,14.23845421,79.82,79.783,0.91454495]
[1771860933827,14.23845421,79.81,79.783,0.91454495]
[1771860934023,13.74493337,79.81,79.761,0.91454495]
[1771860935727,14.23845421,79.79,79.763,0.91454495]
[1771860936314,14.23845421,79.78,79.763,0.91454495]
[1771860936821,14.23845421,79.79,79.763,0.91454495]
[1771860937127,14.23845421,79.77,79.71,14.33845421]
[1771860937327,3.69383402,79.793,79.735,12.54146455]
[1771860937328,14.23845421,79.76,79.735,12.54146455]
[1771860937716,12.53777003,79.759,79.75,0.14367351]
[1771860938415,14.23845421,79.76,79.75,0.14367351]
[1771860939032,50.10899542,79.826,79.751,12.53902772]
[1771860939213,14.23845421,79.79,79.752,0.8427082]
[1771860939412,14.23845421,79.78,79.752,0.8427082]
[1771860939830,14.23845421,79.78,79.754,0.8427082]
[1771860940631,53.91809325,79.816,79.761,0.8427082]
[1771860940837,14.23845421,79.8,79.761,0.8427082]
[1771860941715,12.53148535,79.799,79.762,12.53729846]
[1771860941915,12.53148535,79.799,79.763,0.8427082]
[1771860943729,43.86019874,79.799,79.763,0.8427082]
[1771860943935,14.23845421,79.79,79.763,0.8427082]
[1771860944115,14.23845421,79.79,79.764,12.5369841]
[1771860944427,14.23845421,79.79,79.765,0.8427082]
[1771860944620,12.53148535,79.799,79.765,0.8427082]
[1771860945743,12.53305593,79.789,79.757,0.8427082]
[1771860946737,14.23845421,79.78,79.757,0.8427082]
[1771860947133,26.77294217,79.78,79.757,0.8427082]
[1771860947529,12.53448796,79.78,79.757,0.8427082]
[1771860948733,12.53305593,79.789,79.759,0.8427082]
[1771860949027,12.53249205,79.793,79.761,0.8427082]
[1771860949648,14.23845421,79.8,79.761,0.8427082]
[1771860949938,12.53148535,79.799,79.761,0.8427082]
[1771860951840,43.86019874,79.799,79.763,0.8427082]
[1771860952719,12.53148535,79.799,79.763,0.8427082]
[1771860953740,66.4495786,79.799,79.763,0.8427082]
[1771860954522,12.53164239,79.798,79.765,0.8427082]
[1771860954726,14.23845421,79.79,79.765,0.8427082]
[1771860955822,14.23845421,79.78,79.757,0.8427082]
[1771860957223,14.23845421,79.77,79.75,0.14367351]
[1771860957946,14.23845421,79.77,79.68,0.1]
[1771860957947,3.69383402,79.757,79.713,0.8427082]
[1771860958155,14.23845421,79.73,79.713,0.8427082]
[1771860959124,14.23845421,79.73,79.702,0.8427082]
[1771860959324,12.54248767,79.729,79.702,0.8427082]
[1771860959638,14.23845421,79.73,79.703,12.54657917]
[1771860960037,14.23845421,79.72,79.702,0.8427082]
[1771860960223,14.23845421,79.72,79.692,0.8427082]
[1771860960947,14.23845421,79.71,79.685,12.54940015]
[1771860961146,14.23845421,79.71,79.686,0.8427082]
[1771860961851,14.23845421,79.71,79.687,12.54909834]
[1771860962041,14.23845421,79.71,79.688,0.8427082]
[1771860962545,14.23845421,79.74,79.691,0.8427082]
[1771860963354,14.23845421,79.73,79.693,0.8427082]
[1771860963528,14.23845421,79.72,79.693,0.8427082]
[1771860963728,14.23845421,79.73,79.693,0.8427082]
[1771860966148,3.69383402,79.752,79.68,14.33845421]
[1771860966149,14.23845421,79.71,79.688,0.8427082]
[1771860966645,14.23845421,79.71,79.688,13.39164906]
[1771860966851,14.23845421,79.71,79.689,0.8427082]
[1771860967948,53.91809325,79.739,79.68,0.1]
[1771860967949,14.23845421,79.7,79.68,0.1]
[1771860968254,14.23845421,79.7,79.62,0.1]
[1771860968255,14.23845421,79.69,79.654,0.8427082]
[1771860968436,194.40368235,79.731,79.662,0.8427082]
[1771860968437,14.23845421,79.7,79.662,0.8427082]
[1771860969628,14.23845421,79.69,79.662,0.8427082]
[1771860969849,14.23845421,79.7,79.662,0.8427082]
[1771860970027,12.54595507,79.707,79.671,0.8427082]
[1771860970426,14.23845421,79.7,79.671,0.8427082]
[1771860971654,14.23845421,79.69,79.671,0.8427082]
[1771860972057,12.54878339,79.689,79.671,0.8427082]
[1771860972438,12.54878339,79.689,79.66,0.1]
[1771860972439,14.23845421,79.68,79.66,0.1]
[1771860972639,43.92074187,79.689,79.66,0.1]
[1771860972640,14.23845421,79.67,79.66,0.1]
[1771860972849,14.23845421,79.67,79.637,0.8427082]
[1771860973044,14.23845421,79.66,79.637,0.8427082]
[1771860973350,14.23845421,79.67,79.637,0.8427082]
[1771860973660,14.23845421,79.67,79.639,0.8427082]
[1771860973867,14.23845421,79.66,79.639,0.8427082]
[1771860974035,12.55350933,79.659,79.63,13.50072834]
[1771860974233,12.55350933,79.659,79.63,0.9427082]
[1771860974436,14.23845421,79.64,79.63,0.1]
[1771860974648,14.23845421,79.65,79.63,0.1]
[1771860974847,12.55350933,79.659,79.631,0.8427082]
[1771860975039,14.23845421,79.65,79.631,0.8427082]
[1771860975440,12.55350933,79.659,79.631,0.8427082]
[1771860975645,14.23845421,79.66,79.632,0.8427082]
[1771860975839,14.23845421,79.66,79.631,12.55792342]
[1771860975840,14.23845421,79.68,79.641,0.8427082]
[1771860976369,50.17502103,79.721,79.63,0.1]
[1771860976370,14.23845421,79.67,79.643,0.8427082]
[1771860978646,14.23845421,79.67,79.644,0.8427082]
[1771860979756,14.23845421,79.68,79.644,0.8427082]
[1771860980958,43.92625409,79.679,79.645,0.8427082]
[1771860981172,12.54783863,79.695,79.651,0.8427082]
[1771860981338,14.23845421,79.71,79.671,0.8427082]
[1771860982260,43.89650458,79.733,79.681,0.8427082]
[1771860982451,14.23845421,79.72,79.681,0.8427082]
[1771860983255,12.54406101,79.719,79.682,12.54988579]
[1771860983458,12.54406101,79.719,79.683,0.8427082]
[1771860983842,12.54248767,79.729,79.691,0.8427082]
[1771860984661,12.54248767,79.729,79.682,43.92460028]
[1771860984662,14.23845421,79.74,79.701,0.8427082]
[1771860985044,106.56169293,79.766,79.711,0.8427082]
[1771860985045,43.87834414,79.766,79.711,0.8427082]
[1771860985245,14.23845421,79.75,79.711,0.8427082]
[1771860985466,12.53934218,79.749,79.713,0.8427082]
[1771860986159,43.88769764,79.749,79.713,0.8427082]
[1771860986350,14.23845421,79.74,79.701,0.8427082]
[1771860987165,14.23845421,79.74,79.697,43.9163331]
[1771860987166,12.53934218,79.749,79.711,0.8427082]
[1771860987859,12.53934218,79.749,79.713,0.8427082]
[1771860989167,43.87119416,79.779,79.741,0.8427082]
[1771860989467,14.23845421,79.77,79.741,0.8427082]
[1771860990165,12.53619827,79.769,79.741,0.8427082]
[1771860990358,14.23845421,79.76,79.732,0.8427082]
[1771860990560,14.23845421,79.76,79.734,0.8427082]
[1771860990949,12.53619827,79.769,79.734,0.8427082]
[1771860991251,12.53305593,79.789,79.735,0.8427082]
[1771860991451,12.53305593,79.789,79.761,0.8427082]
[1771860992261,12.53305593,79.789,79.713,50.17968883]
[1771860992262,0.5630294,79.819,79.78,14.23845421]
[1771860992566,0.5630294,79.819,79.77,14.23845421]
[1771860992567,14.23845421,79.81,79.77,14.23845421]
[1771860993360,14.23845421,79.81,79.77,14.24058099]
[1771860993361,14.80192404,79.81,79.77,14.24058099]
[1771860993549,0.56134305,79.809,79.77,14.24058099]
[1771860994369,14.24058099,79.82,79.791,0.70972702]
[1771860996253,12.52834538,79.819,79.791,0.70972702]
[1771860999073,14.24058099,79.81,79.784,12.53376171]
[1771860999671,14.24058099,79.81,79.747,50.15851922]
[1771860999672,14.79160628,79.8,79.771,12.53580365]
[1771860999853,14.79160628,79.8,79.771,13.24553067]
[1771861000169,14.79160628,79.8,79.772,0.70972702]
[1771861001053,0.55102529,79.8,79.773,12.53556967]
[1771861001366,12.53096367,79.803,79.774,0.70972702]
[1771861001966,14.24058099,79.81,79.774,0.70972702]
[1771861002154,54.46668082,79.817,79.781,0.70972702]
[1771861002359,12.52881627,79.816,79.781,0.70972702]
[1771861002760,13.07620593,79.816,79.781,0.70972702]
[1771861002966,14.24058099,79.81,79.781,0.70972702]
[1771861003569,0.54738966,79.808,79.781,0.70972702]
[1771861005358,66.44832242,79.807,79.781,0.70972702]
[1771861005767,44.79255574,79.807,79.792,0.70972702]
[1771861005951,43.26093382,79.807,79.792,0.70972702]
[1771861006764,43.26093382,79.807,79.79,14.24058099]
[1771861007178,43.26093382,79.807,79.791,0.5]
[1771861007671,0.76041978,79.806,79.791,0.5]
[1771861007876,0.76041978,79.806,79.781,0.5]
[1771861009164,0.76041978,79.806,79.782,12.53415557]
[1771861009364,43.26093382,79.807,79.783,0.71278083]
[1771861009778,43.26093382,79.807,79.784,12.53384137]
[1771861010376,56.55171368,79.807,79.781,0.5]
[1771861010677,0.76041978,79.806,79.782,12.53415557]
[1771861012270,12.53038618,79.806,79.781,0.5]
[1771861012577,0.76041978,79.799,79.76,14.24058099]
[1771861012879,0.76041978,79.799,79.77,14.24058099]
[1771861013977,0.76041978,79.799,79.74,14.24058099]
[1771861013978,0.76041978,79.815,79.781,0.70441502]
[1771861014276,0.76041978,79.814,79.79,14.24058099]
[1771861014574,0.76041978,79.835,79.801,0.70245785]
[1771861014882,0.76041978,79.835,79.81,14.24058099]
[1771861015172,0.76041978,79.835,79.801,0.70245785]
[1771861015560,12.52552074,79.837,79.81,14.24058099]
[1771861015757,13.28343599,79.853,79.83,14.24058099]
[1771861015969,0.76041978,79.852,79.825,12.5273022]
[1771861017185,0.76041978,79.868,79.841,0.69861069]
[1771861017362,0.76041978,79.868,79.83,14.93919168]
[1771861018061,0.76041978,79.868,79.84,14.24058099]
[1771861018974,0.76041978,79.868,79.841,0.6948514]
[1771861019173,0.76041978,79.868,79.842,12.52473635]
[1771861019771,14.24058099,80.012,79.842,12.52473635]
[1771861019772,62.55760456,79.927,79.861,0.69300407]
[1771861019975,0.76041978,79.902,79.88,14.24058099]
[1771861020383,1e-08,79.89,79.88,14.24058099]
[1771861020980,0.76041978,79.889,79.851,0.69117797]
[1771861021183,0.76041978,79.889,79.86,14.24058099]
[1771861021359,0.5,79.868,79.86,14.24058099]
[1771861021563,0.5,79.868,79.852,12.52316786]
[1771861021985,1e-08,79.89,79.861,0.68937283]
[1771861022360,0.76041978,79.888,79.852,12.52316786]
[1771861022564,0.76041978,79.888,79.85,14.92995382]
[1771861022565,0.76041978,79.888,79.85,14.24058099]
[1771861022776,0.76041978,79.888,79.86,14.24058099]
[1771861023176,0.76041978,79.886,79.859,12.52201229]
[1771861023569,1e-08,79.89,79.88,14.24058099]
[1771861023777,0.2,79.9,79.881,0.68582453]
[1771861024086,0.76041978,79.909,79.89,14.24058099]
[1771861024285,12.51104679,79.93,79.9,14.24058099]
[1771861024483,12.50797383,79.949,79.92,14.24058099]
[1771861024790,43.77790841,79.949,79.912,0.71625833]
[1771861024967,14.24058099,79.93,79.89,14.24058099]
[1771861025173,12.50953852,79.939,79.9,14.24058099]
[1771861025380,43.78338482,79.939,79.9,14.24058099]
[1771861025686,14.24058099,79.93,79.9,14.24058099]
[1771861025883,14.24058099,79.93,79.89,14.24058099]
[1771861026075,14.24058099,79.93,79.891,0.71625833]
[1771861026264,0.76041978,79.929,79.891,0.71625833]
[1771861027286,0.76041978,79.927,79.9,14.24058099]
[1771861027482,0.2,79.95,79.921,0.71625833]
[1771861027691,0.76041978,79.972,79.941,0.71625833]
[1771861027986,0.76041978,79.959,79.92,14.24058099]
[1771861028187,0.76041978,79.959,79.892,310.35783038]
[1771861028188,0.76041978,79.949,79.91,14.24058099]
[1771861028785,0.76041978,79.939,79.906,0.71625833]
[1771861029192,12.50969501,79.938,79.91,14.24058099]
[1771861029386,0.76041978,79.937,79.91,14.24058099]
[1771861029583,14.24058099,79.93,79.9,14.24058099]
[1771861029893,0.76041978,79.929,79.9,14.24058099]
[1771861030074,0.76041978,79.919,79.88,14.24058099]
[1771861030275,0.76041978,79.919,79.88,26.75935915]
[1771861030474,0.76041978,79.919,79.88,27.47561748]
[1771861031074,0.76041978,79.909,79.88,12.51877816]
[1771861031294,0.76041978,79.899,79.872,12.52003205]
[1771861031482,0.76041978,79.899,79.866,12.52084012]
[1771861031681,0.76041978,79.889,79.866,12.52084012]
[1771861031991,0.76041978,79.907,79.871,0.71625833]
[1771861032490,0.76041978,79.899,79.866,12.52084012]
[1771861032676,0.76041978,79.909,79.871,0.71625833]
[1771861032877,0.76041978,79.909,79.88,14.24058099]
[1771861033071,0.76041978,79.909,79.871,0.71625833]
[1771861033286,0.76041978,79.907,79.872,12.52003205]
[1771861033537,0.76041978,79.907,79.841,50.09925748]
[1771861033538,0.76041978,79.879,79.82,14.24058099]
[1771861033687,3.69383402,79.889,79.821,0.71625833]
[1771861033688,0.76041978,79.859,79.821,0.71625833]
[1771861034292,14.24058099,79.84,79.801,0.71625833]
[1771861034997,14.24058099,79.84,79.81,0.71625833]
[1771861035381,14.24058099,79.84,79.811,12.52960118]
[1771861035982,0.76041978,79.829,79.8,12.53132472]
[1771861036496,14.24058099,79.82,79.794,0.71625833]
[1771861037199,0.26041978,79.829,79.794,0.71625833]
[1771861037399,12.52520697,79.839,79.796,0.71625833]
[1771861037597,14.24058099,79.83,79.796,0.71625833]
[1771861038179,13.74058099,79.83,79.796,0.71625833]
[1771861038984,13.74058099,79.83,79.795,12.53211354]
[1771861038985,14.24058099,79.85,79.811,0.66524106]
[1771861039301,0.67859232,79.865,79.821,0.66524106]
[1771861039484,0.67859232,79.865,79.82,14.24058099]
[1771861039485,0.67859232,79.865,79.831,0.66524106]
[1771861039881,14.24058099,79.86,79.831,0.66524106]
[1771861040882,14.24058099,79.87,79.831,0.66524106]
[1771861041294,12.52050232,79.869,79.831,0.66524106]
[1771861042191,14.94133793,79.86,79.832,12.52630524]
[1771861042497,14.24058099,79.87,79.833,0.72872583]
[1771861042896,26.76106764,79.87,79.833,0.72872583]
[1771861043101,0.70075694,79.869,79.833,0.72872583]
[1771861044302,0.70075694,79.869,79.835,0.72872583]
[1771861045400,50.06343284,79.899,79.835,0.72872583]
[1771861045401,0.70075694,79.878,79.84,14.24058099]
[1771861045594,0.70075694,79.878,79.841,0.72872583]
[1771861045897,12.51783791,79.886,79.841,0.72872583]
[1771861046100,14.94133793,79.88,79.841,0.72872583]
[1771861046292,14.94133793,79.88,79.787,50.13294853]
[1771861046293,0.70075694,79.869,79.832,0.72872583]
[1771861046807,0.70075694,79.911,79.86,14.24058099]
[1771861047107,0.70075694,79.92,79.89,14.24058099]
[1771861047288,14.24058099,79.92,79.881,0.72872583]
[1771861047608,0.70075694,79.919,79.891,0.72872583]
[1771861047911,50.00693147,79.989,79.891,0.72872583]
[1771861047912,0.70075694,79.936,79.9,14.24058099]
[1771861048117,14.24058099,79.93,79.891,0.72872583]
[1771861048288,12.5111036,79.929,79.893,0.72872583]
[1771861048490,0.70075694,79.909,79.871,0.72872583]
[1771861048889,0.70075694,79.909,79.88,14.96930682]
[1771861049308,0.70075694,79.909,79.819,50.11277705]
[1771861049492,14.24058099,79.89,79.851,0.72872583]
[1771861050085,14.24058099,79.88,79.841,0.72872583]
[1771861050497,12.51893488,79.879,79.842,12.52473635]
[1771861050699,12.51893488,79.879,79.842,13.25346218]